[Event "Schack-SM 2024: Mastarklassen"]
[Site "Fortnox Arena, Hejaregatan 5, Vaxjo, Sweden"]
[Date "2024.07.07"]
[Round "9.12"]
[White "Karlsson, Jorgen"]
[Black "Lindborg, Patrik"]
[Result "1/2-1/2"]
[TimeControl "90 minutes for 40 moves + 30 minutes for the rest of the game + 30 seconds per move from move one."]
[WhiteElo "2020"]
[BlackElo "2162"]

1. c4 {[%clk 01:30:57]} {[%emt 00:00:02]} e5 {[%clk 01:29:48]} {[%emt
00:01:13]} 2. Nc3 {[%clk 01:31:12]} {[%emt 00:00:15]} Nf6 {[%clk 01:30:14]}
{[%emt 00:00:04]} 3. g3 {[%clk 01:31:25]} {[%emt 00:00:17]} d5 {[%clk
01:30:26]} {[%emt 00:00:18]} 4. cxd5 {[%clk 01:31:29]} {[%emt 00:00:26]} Nxd5
{[%clk 01:30:53]} {[%emt 00:00:02]} 5. Bg2 {[%clk 01:31:39]} {[%emt 00:00:20]}
Nb6 {[%clk 01:31:14]} {[%emt 00:00:10]} 6. Nf3 {[%clk 01:29:42]} {[%emt
00:02:25]} Nc6 {[%clk 01:31:42]} {[%emt 00:00:04]} 7. d3 {[%clk 01:29:46]}
{[%emt 00:00:26]} Be7 {[%clk 01:30:53]} {[%emt 00:01:18]} 8. O-O {[%clk
01:29:43]} {[%emt 00:00:34]} O-O {[%clk 01:27:26]} {[%emt 00:03:57]} 9. Be3
{[%clk 01:25:22]} {[%emt 00:04:50]} Be6 {[%clk 01:26:20]} {[%emt 00:01:37]} 10.
Rc1 {[%clk 01:23:28]} {[%emt 00:02:24]} Nd5 {[%clk 01:21:47]} {[%emt 00:05:03]}
11. Bd2 {[%clk 01:23:35]} {[%emt 00:00:22]} Qd7 {[%clk 01:13:49]} {[%emt
00:08:29]} 12. a3 {[%clk 01:17:08]} {[%emt 00:06:56]} Rfd8 {[%clk 01:02:18]}
{[%emt 00:12:02]} 13. b4 {[%clk 01:10:05]} {[%emt 00:07:32]} f6 {[%clk
00:57:51]} {[%emt 00:04:58]} 14. Ne4 {[%clk 01:08:29]} {[%emt 00:02:05]} Bf7
{[%clk 00:50:14]} {[%emt 00:08:08]} 15. Nc5 {[%clk 01:07:37]} {[%emt 00:01:22]}
Qc8 {[%clk 00:50:14]} {[%emt 00:00:29]} 16. Qc2 {[%clk 01:00:13]} {[%emt
00:07:54]} Nb8 {[%clk 00:40:47]} {[%emt 00:09:58]} 17. Rfd1 {[%clk 00:56:48]}
{[%emt 00:03:54]} b6 {[%clk 00:31:38]} {[%emt 00:09:40]} 18. Nb3 {[%clk
00:57:08]} {[%emt 00:00:10]} c6 {[%clk 00:25:32]} {[%emt 00:06:35]} 19. d4
{[%clk 00:54:22]} {[%emt 00:03:16]} Qa6 {[%clk 00:18:59]} {[%emt 00:07:04]} 20.
e4 {[%clk 00:50:03]} {[%emt 00:04:48]} Nc7 {[%clk 00:16:58]} {[%emt 00:02:32]}
21. d5 {[%clk 00:48:11]} {[%emt 00:02:22]} Qa4 {[%clk 00:14:49]} {[%emt
00:02:39]} 22. Bf1 {[%clk 00:45:38]} {[%emt 00:03:01]} Bd6 {[%clk 00:12:06]}
{[%emt 00:03:15]} 23. Bc4 {[%clk 00:34:52]} {[%emt 00:11:15]} b5 {[%clk
00:11:35]} {[%emt 00:01:01]} 24. Bd3 {[%clk 00:35:17]} {[%emt 00:00:05]} Nxd5
{[%clk 00:07:12]} {[%emt 00:04:54]} 25. Nc5 {[%clk 00:33:40]} {[%emt 00:02:07]}
Qxc2 {[%clk 00:07:20]} {[%emt 00:00:22]} 26. Bxc2 {[%clk 00:33:23]} {[%emt
00:00:46]} Bxc5 {[%clk 00:06:15]} {[%emt 00:01:36]} 27. bxc5 {[%clk 00:33:27]}
{[%emt 00:00:26]} Nc7 {[%clk 00:04:38]} {[%emt 00:02:07]} 28. Ba5 {[%emt
00:00:58]} Nba6 {[%emt 00:00:01]} 29. Rd6 {[%clk 00:32:05]} {[%emt 00:01:23]}
Rdc8 {[%clk 00:03:05]} {[%emt 00:02:33]} 30. Rxc6 {[%clk 00:32:03]} {[%emt
00:00:32]} Ne6 {[%clk 00:03:29]} {[%emt 00:00:05]} 31. Rxa6 {[%clk 00:32:17]}
{[%emt 00:00:17]} Nxc5 {[%clk 00:03:01]} {[%emt 00:00:58]} 32. Rd6 {[%clk
00:32:07]} {[%emt 00:00:39]} Nb3 {[%clk 00:03:10]} {[%emt 00:00:23]} 33. Bxb3
{[%clk 00:31:49]} {[%emt 00:00:48]} Rxc1+ {[%clk 00:03:37]} {[%emt 00:00:02]}
34. Rd1 {[%clk 00:32:11]} {[%emt 00:00:07]} Rac8 {[%clk 00:02:13]} {[%emt
00:01:55]} 35. Bxf7+ {[%clk 00:32:33]} {[%emt 00:00:07]} Kxf7 {[%clk 00:02:41]}
{[%emt 00:00:02]} 36. Rxc1 {[%clk 00:32:42]} {[%emt 00:00:22]} Rxc1+ {[%clk
00:03:04]} {[%emt 00:00:08]} 37. Kg2 {[%clk 00:33:06]} {[%emt 00:00:05]} Ra1
{[%clk 00:03:10]} {[%emt 00:00:23]} 38. Bb4 {[%clk 00:32:57]} {[%emt 00:00:40]}
a5 {[%clk 00:03:04]} {[%emt 00:00:37]} 39. Bxa5 {[%clk 00:33:22]} {[%emt
00:00:04]} Rxa3 {[%clk 00:03:07]} {[%emt 00:00:27]} 40. Bb6 {[%clk 00:33:07]}
{[%emt 00:00:44]} Ke6 {[%clk 00:01:55]} {[%emt 00:01:43]} 41. Nd2 {[%clk
00:32:14]} {[%emt 00:01:22]} g6 {[%clk 00:28:46]} {[%emt 00:03:40]} 42. Kf1
{[%clk 01:01:55]} {[%emt 00:00:48]} h5 {[%clk 00:27:14]} {[%emt 00:02:02]} 43.
h4 {[%clk 01:00:56]} {[%emt 00:01:29]} g5 {[%clk 00:24:17]} {[%emt 00:03:27]}
44. hxg5 {[%clk 00:57:08]} {[%emt 00:04:18]} fxg5 {[%clk 00:24:35]} {[%emt
00:00:12]} 45. Bd8 {[%clk 00:57:26]} {[%emt 00:00:13]} g4 {[%clk 00:13:24]}
{[%emt 00:11:41]} 46. Bb6 {[%clk 00:57:15]} {[%emt 00:00:40]} Kd6 {[%clk
00:12:28]} {[%emt 00:01:22]} 47. Ke2 {[%clk 00:57:08]} {[%emt 00:00:41]} h4
{[%clk 00:08:48]} {[%emt 00:04:12]} 48. gxh4 {[%clk 00:57:29]} {[%emt
00:00:08]} Rh3 {[%clk 00:09:16]} {[%emt 00:00:01]} 49. Nf1 {[%clk 00:50:23]}
{[%emt 00:07:36]} b4 {[%clk 00:04:46]} {[%emt 00:05:01]} 50. Be3 {[%clk
00:50:24]} {[%emt 00:00:28]} Rxh4 {[%clk 00:03:16]} {[%emt 00:02:01]} 51. Kd3
{[%clk 00:50:34]} {[%emt 00:00:19]} Rh1 {[%clk 00:01:24]} {[%emt 00:02:23]} 52.
Nd2 {[%clk 00:50:54]} {[%emt 00:00:10]} Rh3 {[%clk 00:01:01]} {[%emt 00:00:53]}
53. Kc4 {[%clk 00:48:34]} {[%emt 00:02:50]} g3 {[%clk 00:00:31]} {[%emt
00:01:00]} 54. fxg3 {[%clk 00:48:59]} {[%emt 00:00:04]} Rxg3 {[%clk 00:00:54]}
{[%emt 00:00:07]} 55. Bc5+ {[%clk 00:49:21]} {[%emt 00:00:08]} Kc6 {[%clk
00:00:51]} {[%emt 00:00:34]} 56. Bxb4 {[%clk 00:49:45]} {[%emt 00:00:06]} Rh3
{[%clk 00:00:33]} {[%emt 00:00:47]} 57. Nb1 {[%clk 00:46:53]} {[%emt 00:03:22]}
Re3 {[%clk 00:00:35]} {[%emt 00:00:29]} 58. Nc3 {[%clk 00:47:13]} {[%emt
00:00:09]} Re1 {[%clk 00:00:47]} {[%emt 00:00:18]} 59. Kd3 {[%clk 00:47:28]}
{[%emt 00:00:15]} Rh1 {[%clk 00:01:06]} {[%emt 00:00:11]} 60. Nd5 {[%clk
00:46:24]} {[%emt 00:01:34]} Rh3+ {[%clk 00:01:25]} {[%emt 00:00:13]} 61. Kc4
{[%clk 00:46:30]} {[%emt 00:00:23]} Rh1 {[%clk 00:00:34]} {[%emt 00:01:20]} 62.
Nf6 {[%clk 00:42:32]} {[%emt 00:04:28]} Rc1+ {[%clk 00:00:47]} {[%emt
00:00:18]} 63. Kd3 {[%clk 00:42:35]} {[%emt 00:00:26]} Rb1 {[%clk 00:00:49]}
{[%emt 00:00:28]} 64. Kc3 {[%clk 00:39:54]} {[%emt 00:03:12]} Rc1+ {[%clk
00:00:58]} {[%emt 00:00:21]} 65. Kd2 {[%clk 00:36:19]} {[%emt 00:04:04]} Rf1
{[%clk 00:00:37]} {[%emt 00:00:52]} 66. Ng4 {[%clk 00:36:36]} {[%emt 00:00:12]}
Rf4 {[%clk 00:00:41]} {[%emt 00:00:27]} 67. Nxe5+ {[%clk 00:35:44]} {[%emt
00:01:22]} Kb5 {[%clk 00:00:55]} {[%emt 00:00:16]} 68. Ke3 {[%clk 00:35:53]}
{[%emt 00:00:20]} Rxe4+ {[%clk 00:00:45]} {[%emt 00:00:40]} 69. Kxe4 {[%clk
00:36:20]} {[%emt 00:00:03]} Kxb4 {[%clk 00:01:04]} {[%emt 00:00:12]} 70. Nc4
{[%clk 00:36:42]} {[%emt 00:00:08]} Kxc4 {[%clk 00:01:25]} {[%emt 00:00:09]}
1/2-1/2

[Event "Schack-SM 2024: Mastarklassen"]
[Site "Fortnox Arena, Hejaregatan 5, Vaxjo, Sweden"]
[Date "2024.07.07"]
[Round "9.13"]
[White "Malm, Simon 1995"]
[Black "Arvidsson, Jonas"]
[Result "1-0"]
[TimeControl "90 minutes for 40 moves + 30 minutes for the rest of the game + 30 seconds per move from move one."]
[WhiteElo "1948"]
[BlackElo "1960"]

1. d4 {[%clk 01:30:57]} {[%emt 00:00:03]} Nf6 {[%clk 01:30:56]} {[%emt
00:00:05]} 2. c4 {[%clk 01:31:17]} {[%emt 00:00:10]} c5 {[%clk 01:31:23]}
{[%emt 00:00:03]} 3. d5 {[%clk 01:31:33]} {[%emt 00:00:14]} b5 {[%clk
01:31:48]} {[%emt 00:00:06]} 4. cxb5 {[%clk 01:31:44]} {[%emt 00:00:18]} a6
{[%clk 01:32:12]} {[%emt 00:00:06]} 5. bxa6 {[%clk 01:32:09]} {[%emt 00:00:05]}
g6 {[%clk 01:32:36]} {[%emt 00:00:07]} 6. Nc3 {[%clk 01:32:34]} {[%emt
00:00:04]} Bxa6 {[%clk 01:32:54]} {[%emt 00:00:12]} 7. e4 {[%clk 01:32:55]}
{[%emt 00:00:09]} Bxf1 {[%clk 01:33:18]} {[%emt 00:00:06]} 8. Kxf1 {[%clk
01:33:19]} {[%emt 00:00:06]} d6 {[%clk 01:33:40]} {[%emt 00:00:08]} 9. Nf3
{[%clk 01:33:31]} {[%emt 00:00:15]} Bg7 {[%clk 01:33:42]} {[%emt 00:00:31]} 10.
g3 {[%clk 01:33:54]} {[%emt 00:00:07]} O-O {[%clk 01:33:59]} {[%emt 00:00:13]}
11. Kg2 {[%clk 01:34:19]} {[%emt 00:00:04]} Nbd7 {[%clk 01:34:00]} {[%emt
00:00:30]} 12. a4 {[%clk 01:33:25]} {[%emt 00:01:23]} Qa5 {[%clk 01:21:41]}
{[%emt 00:12:50]} 13. Bd2 {[%clk 01:28:35]} {[%emt 00:05:20]} Ng4 {[%clk
01:19:04]} {[%emt 00:03:07]} 14. Nb5 {[%clk 01:16:23]} {[%emt 00:12:42]} Qb6
{[%clk 01:17:33]} {[%emt 00:02:00]} 15. Qc2 {[%clk 01:11:46]} {[%emt 00:05:07]}
Rfc8 {[%clk 01:11:22]} {[%emt 00:06:42]} 16. Bc3 {[%clk 01:02:31]} {[%emt
00:09:45]} Nde5 {[%clk 01:05:29]} {[%emt 00:06:23]} 17. h3 {[%clk 00:52:26]}
{[%emt 00:10:35]} Nxf3 {[%clk 01:04:25]} {[%emt 00:01:34]} 18. Bxg7 {[%clk
00:43:40]} {[%emt 00:09:16]} Kxg7 {[%clk 01:04:20]} {[%emt 00:00:35]} 19. hxg4
{[%clk 00:42:03]} {[%emt 00:02:07]} Nd4 {[%clk 01:04:33]} {[%emt 00:00:16]} 20.
Nxd4 {[%clk 00:40:16]} {[%emt 00:02:18]} cxd4 {[%clk 01:04:55]} {[%emt
00:00:07]} 21. Qd2 {[%clk 00:40:36]} {[%emt 00:00:10]} Rh8 {[%clk 01:04:50]}
{[%emt 00:00:36]} 22. b4 {[%clk 00:39:34]} {[%emt 00:01:32]} Rac8 {[%clk
01:04:30]} {[%emt 00:00:49]} 23. a5 {[%clk 00:39:24]} {[%emt 00:00:41]} Qb5
{[%clk 01:04:02]} {[%emt 00:00:58]} 24. Qxd4+ {[%clk 00:38:44]} {[%emt
00:01:09]} f6 {[%clk 01:04:27]} {[%emt 00:00:04]} 25. Rhc1 {[%clk 00:30:16]}
{[%emt 00:08:59]} Kf7 {[%clk 01:04:05]} {[%emt 00:00:52]} 26. Rxc8 {[%clk
00:28:47]} {[%emt 00:01:59]} Rxc8 {[%clk 01:04:35]} {[%emt 00:00:01]} 27. a6
{[%clk 00:27:58]} {[%emt 00:01:19]} Ke8 {[%clk 01:03:37]} {[%emt 00:01:28]} 28.
g5 {[%emt 00:06:29]} f5 {[%clk 01:02:45]} {[%emt 00:00:27]} 29. a7 {[%clk
00:22:45]} {[%emt 00:00:39]} 1-0

[Event "Schack-SM 2024: Mastarklassen"]
[Site "Fortnox Arena, Hejaregatan 5, Vaxjo, Sweden"]
[Date "2024.07.07"]
[Round "9.1"]
[White "Tuomainen, Felix"]
[Black "Ljung, Harald"]
[Result "1/2-1/2"]
[TimeControl "90 minutes for 40 moves + 30 minutes for the rest of the game + 30 seconds per move from move one."]
[WhiteTitle "FM"]
[WhiteElo "2255"]
[BlackElo "2101"]

1. d4 {[%clk 01:30:55]} {[%emt 00:00:04]} Nf6 {[%clk 01:30:50]} {[%emt
00:00:12]} 2. c4 {[%clk 01:31:15]} {[%emt 00:00:08]} e6 {[%clk 01:31:16]}
{[%emt 00:00:06]} 3. Nf3 {[%clk 01:30:47]} {[%emt 00:00:57]} d5 {[%clk
01:31:42]} {[%emt 00:00:04]} 4. g3 {[%clk 01:29:47]} {[%emt 00:01:30]} Be7
{[%clk 01:31:30]} {[%emt 00:00:43]} 5. Bg2 {[%clk 01:30:05]} {[%emt 00:00:13]}
O-O {[%clk 01:31:54]} {[%emt 00:00:05]} 6. O-O {[%clk 01:30:22]} {[%emt
00:00:13]} c6 {[%clk 01:32:21]} {[%emt 00:00:04]} 7. Qc2 {[%clk 01:30:24]}
{[%emt 00:00:27]} Nbd7 {[%clk 01:32:18]} {[%emt 00:00:33]} 8. Nbd2 {[%clk
01:25:25]} {[%emt 00:05:27]} b6 {[%clk 01:31:41]} {[%emt 00:01:09]} 9. e4
{[%clk 01:25:40]} {[%emt 00:00:14]} Bb7 {[%clk 01:24:27]} {[%emt 00:07:45]} 10.
e5 {[%clk 01:19:35]} {[%emt 00:06:35]} Ne8 {[%clk 01:24:51]} {[%emt 00:00:07]}
11. cxd5 {[%clk 01:16:04]} {[%emt 00:04:01]} cxd5 {[%clk 01:23:55]} {[%emt
00:01:26]} 12. Nb1 {[%clk 01:11:35]} {[%emt 00:04:57]} Rc8 {[%clk 01:21:53]}
{[%emt 00:02:33]} 13. Qd1 {[%clk 01:11:44]} {[%emt 00:00:20]} b5 {[%clk
01:17:37]} {[%emt 00:04:47]} 14. a3 {[%clk 00:55:01]} {[%emt 00:17:13]} a5
{[%clk 01:15:38]} {[%emt 00:02:29]} 15. Nc3 {[%clk 00:51:09]} {[%emt 00:04:21]}
b4 {[%clk 01:15:19]} {[%emt 00:00:50]} 16. axb4 {[%clk 00:51:25]} {[%emt
00:00:15]} axb4 {[%clk 01:15:45]} {[%emt 00:00:03]} 17. Ne2 {[%clk 00:51:24]}
{[%emt 00:00:29]} Nb8 {[%clk 01:06:11]} {[%emt 00:10:04]} 18. Qd3 {[%clk
00:47:12]} {[%emt 00:04:39]} Qc7 {[%clk 01:03:35]} {[%emt 00:03:10]} 19. Nf4
{[%clk 00:39:27]} {[%emt 00:08:16]} Qc2 {[%clk 00:59:23]} {[%emt 00:04:41]} 20.
Qe3 {[%clk 00:39:40]} {[%emt 00:00:17]} Nc7 {[%clk 00:53:58]} {[%emt 00:05:55]}
21. Re1 {[%clk 00:35:03]} {[%emt 00:05:09]} Nc6 {[%clk 00:49:36]} {[%emt
00:04:50]} 22. Bf1 {[%clk 00:33:56]} {[%emt 00:01:39]} Qe4 {[%clk 00:46:39]}
{[%emt 00:03:26]} 23. Qb3 {[%clk 00:23:55]} {[%emt 00:10:30]} Nxd4 {[%clk
00:45:43]} {[%emt 00:01:29]} 24. Nxd4 {[%clk 00:24:16]} {[%emt 00:00:07]} Qxd4
{[%clk 00:41:41]} {[%emt 00:04:32]} 25. Be3 {[%clk 00:19:52]} {[%emt 00:04:54]}
Qxe5 {[%clk 00:40:44]} {[%emt 00:01:27]} 26. Bc5 {[%clk 00:19:41]} {[%emt
00:00:41]} Qf6 {[%clk 00:40:04]} {[%emt 00:01:09]} 27. Nh5 {[%clk 00:19:27]}
{[%emt 00:00:43]} Qg5 {[%clk 00:40:02]} {[%emt 00:00:33]} 28. h4 {[%clk
00:19:29]} {[%emt 00:00:28]} Qxh5 {[%clk 00:40:28]} {[%emt 00:00:04]} 29. Bxe7
{[%clk 00:19:56]} {[%emt 00:00:04]} Rfe8 {[%clk 00:40:39]} {[%emt 00:00:17]} 30.
Qxb4 {[%clk 00:19:56]} {[%emt 00:00:31]} Ba8 {[%clk 00:33:19]} {[%emt
00:07:49]} 31. g4 {[%clk 00:13:47]} {[%emt 00:06:38]} Qh6 {[%clk 00:31:38]}
{[%emt 00:02:09]} 32. Bd3 {[%clk 00:12:20]} {[%emt 00:01:57]} e5 {[%clk
00:25:28]} {[%emt 00:06:44]} 33. Rxe5 {[%clk 00:11:37]} {[%emt 00:01:13]} Qc6
{[%clk 00:18:07]} {[%emt 00:07:50]} 34. Qf4 {[%clk 00:08:04]} {[%emt 00:03:58]}
f6 {[%clk 00:14:31]} {[%emt 00:04:12]} 35. Ree1 {[%clk 00:04:30]} {[%emt
00:04:02]} Kf7 {[%clk 00:13:20]} {[%emt 00:01:42]} 36. Rac1 {[%clk 00:03:53]}
{[%emt 00:01:06]} Ne6 {[%clk 00:12:52]} {[%emt 00:00:58]} 37. Qd2 {[%clk
00:02:17]} {[%emt 00:02:06]} Qd7 {[%clk 00:11:43]} {[%emt 00:01:39]} 38. Rxc8
{[%clk 00:01:22]} {[%emt 00:01:26]} Qxc8 {[%clk 00:12:12]} 39. Bxf6 {[%clk
00:00:42]} {[%emt 00:01:10]} gxf6 {[%clk 00:11:44]} {[%emt 00:00:57]} 40. Bf5
{[%clk 00:00:40]} {[%emt 00:00:33]} Re7 {[%clk 00:05:48]} {[%emt 00:06:25]} 41.
Qh6 {[%clk 00:28:04]} {[%emt 00:03:06]} Qg8 {[%clk 00:30:40]} {[%emt 00:05:38]}
42. Qe3 {[%clk 00:24:13]} {[%emt 00:04:19]} Qe8 {[%clk 00:28:16]} {[%emt
00:02:54]} 43. Qh6 {[%clk 00:20:54]} {[%emt 00:03:49]} Ng7 {[%clk 00:25:15]}
{[%emt 00:03:31]} 44. Rxe7+ {[%clk 00:19:52]} Qxe7 {[%clk 00:25:42]} {[%emt
00:01:37]} 45. Qxh7 {[%clk 00:19:01]} {[%emt 00:01:20]} Qe1+ {[%clk 00:25:54]}
{[%emt 00:00:18]} 46. Kh2 {[%clk 00:18:21]} {[%emt 00:01:10]} Qxf2+ {[%clk
00:26:17]} {[%emt 00:00:09]} 47. Kh3 {[%clk 00:18:45]} {[%emt 00:00:05]} Qf3+
{[%clk 00:25:43]} {[%emt 00:01:03]} 1/2-1/2

[Event "Schack-SM 2024: Mastarklassen"]
[Site "Fortnox Arena, Hejaregatan 5, Vaxjo, Sweden"]
[Date "2024.07.07"]
[Round "9.2"]
[White "Mashhadi, Peyman"]
[Black "Landgren, Andreas"]
[Result "0-1"]
[TimeControl "90 minutes for 40 moves + 30 minutes for the rest of the game + 30 seconds per move from move one."]
[BlackTitle "FM"]
[WhiteElo "2116"]
[BlackElo "2243"]

1. e4 {[%clk 01:30:54]} {[%emt 00:00:06]} c5 {[%clk 01:30:55]} {[%emt
00:00:06]} 2. Nf3 {[%clk 01:31:12]} {[%emt 00:00:11]} d6 {[%clk 01:31:18]}
{[%emt 00:00:07]} 3. c3 {[%clk 01:31:23]} {[%emt 00:00:19]} Nf6 {[%clk
01:31:35]} {[%emt 00:00:13]} 4. h3 {[%clk 01:31:21]} {[%emt 00:00:32]} g6
{[%clk 01:28:32]} {[%emt 00:03:32]} 5. Bd3 {[%clk 01:31:19]} {[%emt 00:00:32]}
Bg7 {[%clk 01:28:53]} {[%emt 00:00:10]} 6. O-O {[%clk 01:31:03]} {[%emt
00:00:44]} O-O {[%clk 01:28:11]} {[%emt 00:01:12]} 7. Bc2 {[%clk 01:31:04]}
{[%emt 00:00:29]} e5 {[%clk 01:17:24]} {[%emt 00:11:17]} 8. Re1 {[%clk
01:29:13]} {[%emt 00:02:22]} Nc6 {[%clk 01:12:15]} {[%emt 00:05:39]} 9. d3
{[%clk 01:27:21]} {[%emt 00:02:22]} h6 {[%clk 01:05:14]} {[%emt 00:07:31]} 10.
Nbd2 {[%clk 01:20:41]} {[%emt 00:07:10]} d5 {[%clk 01:03:50]} {[%emt 00:01:54]}
11. Qe2 {[%clk 01:12:46]} {[%emt 00:08:25]} d4 {[%clk 00:53:40]} {[%emt
00:10:40]} 12. a4 {[%clk 01:07:04]} {[%emt 00:06:13]} Be6 {[%clk 00:44:31]}
{[%emt 00:09:39]} 13. Bb3 {[%clk 01:01:23]} {[%emt 00:06:10]} Qd7 {[%clk
00:44:34]} {[%emt 00:00:27]} 14. Nc4 {[%clk 00:48:23]} {[%emt 00:13:31]} Nh5
{[%clk 00:43:30]} {[%emt 00:01:34]} 15. Rd1 {[%clk 00:46:55]} {[%emt 00:01:58]}
Kh7 {[%clk 00:41:07]} {[%emt 00:02:52]} 16. Kh2 {[%clk 00:45:18]} {[%emt
00:02:07]} Rae8 {[%clk 00:39:37]} {[%emt 00:02:00]} 17. Nh4 {[%clk 00:36:24]}
{[%emt 00:09:25]} Qd8 {[%clk 00:29:29]} {[%emt 00:10:38]} 18. Nf3 {[%clk
00:33:20]} {[%emt 00:03:34]} f5 {[%clk 00:28:19]} {[%emt 00:01:41]} 19. exf5
{[%clk 00:20:03]} {[%emt 00:13:47]} Bxf5 {[%clk 00:28:34]} {[%emt 00:00:14]} 20.
Bc2 {[%clk 00:17:17]} {[%emt 00:03:17]} Nf4 {[%clk 00:26:29]} {[%emt 00:02:34]}
21. Qf1 {[%clk 00:16:33]} {[%emt 00:01:14]} Nxd3 {[%clk 00:21:43]} {[%emt
00:05:18]} 22. Bxd3 {[%clk 00:16:34]} {[%emt 00:00:29]} Bxd3 {[%clk 00:21:22]}
{[%emt 00:00:50]} 23. Qxd3 {[%clk 00:14:17]} {[%emt 00:02:47]} e4 {[%clk
00:21:46]} {[%emt 00:00:07]} 24. Qf1 {[%clk 00:14:31]} {[%emt 00:00:15]} exf3
{[%clk 00:22:01]} {[%emt 00:00:14]} 25. g3 {[%clk 00:14:37]} {[%emt 00:00:24]}
Re2 {[%clk 00:12:25]} {[%emt 00:10:06]} 26. Rd3 {[%clk 00:14:45]} {[%emt
00:00:21]} Qd5 {[%clk 00:11:00]} {[%emt 00:01:55]} 27. Nd2 {[%clk 00:10:59]}
{[%emt 00:04:17]} Ne5 {[%clk 00:09:50]} {[%emt 00:01:40]} 28. c4 {[%clk
00:11:26]} {[%emt 00:00:03]} Qe6 {[%clk 00:09:27]} {[%emt 00:00:53]} 29. Rb3
{[%clk 00:08:06]} {[%emt 00:03:50]} Re1 {[%clk 00:09:29]} {[%emt 00:00:33]} 0-1